Cogmind - Beta 14 @@@ ROGUE MODE // 2024.09.11 @ 14:19:56 // AFD2020/Player2 Player: Minty Result: Destroyed by Autobeam Turret with Autobeam Performance ------------- Evolutions (0) 0 Regions Visited (2) 400 Robots Destroyed (30) 150 Value Destroyed (642) 642 Prototype IDs (2) 40 Alien Tech Used (0) 0 Bonus (23) 23 TOTAL SCORE: 1255 Bonus ------- High Alert Combat Kills 24 Follower Combat Kills 116 Friendly Fire -117 Cogmind --------- Core Integrity 0/250 Matter 44/300 Energy 86/200 System Corruption 4% Temperature Cool (12) Movement Rolling (215) Ox9 Location -10/Subcaves Parts ------- > --- POWER (1) -------- Subdweller Power Source > --- PROPULSION (2) --- Wheel > --- UTILITY (2) ------ Huge Storage Unit Targeting Computer > --- WEAPON (2) ------- EM Pulse Gun Subdweller Laser > --- INVENTORY (25) --- Light Treads Light Treads Wheel Subdweller Monowheel Subdweller Monowheel Subdweller Monowheel Small Storage Unit Structural Scanner Terrain Scanner Weapon Shielding Scrap Shield Subdweller Laser Grenade Launcher Multitool Peak State ------------ > --- POWER ------------ Ion Engine > --- PROPULSION ------- Wheel Wheel > --- UTILITY ---------- Huge Storage Unit Hacking Suite > --- WEAPON ----------- EM Pulse Gun EM Pulse Gun > --- INVENTORY -------- Subdweller Power Source Light Treads Light Treads Wheel Subdweller Monowheel Small Storage Unit Structural Scanner Terrain Scanner Targeting Computer Weapon Shielding EM Pulse Gun EM Pulse Gun EM Pulse Gun Subdweller Laser Grenade Launcher Multitool [Rating: 11] Favorites ----------- Power Ion Engine Engine Ion Engine Propulsion Wheel Leg Aluminum Leg Wheel Wheel Utility Huge Storage Unit Device Structural Scanner Storage Huge Storage Unit Processor Targeting Computer Hackware Hacking Suite Weapon EM Pulse Gun Energy Gun EM Pulse Gun Ballistic Gun Assault Rifle Launcher Grenade Launcher Build | -11 -10 -10 ------- Run | Yrd Mat Sub Slots Evolved . | . . . Power . | . . . Propulsion . | . . . Utility . | . . . Weapon . | . . . Parts Attached 45 | . 23 22 Power 2 | . 1 1 Engine 2 | . 1 1 Core . | . . . Reactor . | . . . Propulsion 7 | . 4 3 Treads . | . . . Leg . | . . . Wheel 7 | . 4 3 Hover . | . . . Flight . | . . . Utility 5 | . 3 2 Device 2 | . 1 1 Storage 1 | . 1 . Processor 1 | . . 1 Hackware 1 | . 1 . Protection . | . . . Artifact . | . . . Weapon 31 | . 15 16 Energy Gun 18 | . 6 12 Energy Cannon . | . . . Ballistic Gun 3 | . 3 . Ballistic Cannon . | . . . Launcher 10 | . 6 4 Special Weapon . | . . . Impact Weapon . | . . . Slashing Weapon . | . . . Piercing Weapon . | . . . Special Melee Weapon . | . . . Unidentified Prototypes . | . . . Corrupted Parts 2 | . . 2 System Corruption 4 | . . 4 Parts Lost 8 | . 1 7 Power 1 | . . 1 Propulsion 3 | . 1 2 Utility . | . . . Weapon 4 | . . 4 Highest Loss Streak 4 | . 1 4 To Critical Strikes . | . . . Average Slot Usage (%) 98 | . 98 98 Engine 13 | . 13 13 Wheel 27 | . 27 27 Device 4 | . 2 6 Storage 14 | . 14 14 Hackware 8 | . 10 4 Energy Gun 24 | . 23 26 Ballistic Gun 2 | . 4 . Peak Build Rating 11 | . 10 11 Average Rating 9 | . 9 9 On Entrance 7 | 6 6 10 Naked Turns . | . . . Heaviest Build 90 | 13 90 90 Greatest Support 26 | 20 26 20 Greatest Overweight (x) 8 | . 8 4 Average Overweight (x) 3 | . 2 4 Largest Inventory Capacity 25 | . 25 25 Average Capacity 23 | . 21 25 Most Carried 19 | . 11 19 Average Carried 11 | . 9 14 Final Capacity 25 | 8 25 25 Final Carried 15 | 6 11 15 Class Distribution -------------------- 98% | Mutant Dominant Class ---------------- Mutant | -10/Materials Mutant | -10/Subcaves Resources | -11 -10 -10 ----------- Run | Yrd Mat Sub Matter Collected 650 | 200 293 157 Remotely . | . . . Salvage Created 737 | . 437 300 Parts 54 | . 33 21 Haulers Intercepted 2 | . 2 . Recyclers Shooed . | . . . Parts Field Recycled . | . . . Retrieved Matter . | . . . Parts Self-Destructed 7 | . . 7 Prevented . | . . . Kills | -11 -10 -10 ------- Run | Yrd Mat Sub Combat Hostiles Destroyed 24 | . 11 13 Guns 12 | . 7 5 AOE 12 | . 4 8 Classes Destroyed 9 | . 7 2 Worker 1 | . 1 . Builder 1 | . 1 . Hauler 2 | . 2 . Operator 1 | . 1 . Watcher 1 | . 1 . Swarmer 12 | . 6 6 Grunt 5 | . 5 . Artisan 1 | . . 1 Subdweller 7 | . . 7 Best Kill Streak 4 | . 4 4 Combat Bots Only 4 | . 4 4 Max Kills in Single Turn 3 | . 3 2 Gunslinging . | . . . Exploded 3 | . 3 2 Melee . | . . . Uniques/NPCs Destroyed . | . . . Combat | -11 -10 -10 -------- Run | Yrd Mat Sub Hostile Shots Fired 125 | . 35 90 Missed 41 | . 12 29 Damage Taken 962 | . 284 678 Core 243 | . 43 200 Absorbed by Shields . | . . . Regen/Repaired (Parts) 53 | . 53 . Core Remaining (%) 100 | 100 . . Volleys Fired 72 | . 36 36 Largest 2 | . 2 2 Hottest 120 | . 80 120 Shots Fired 126 | . 63 63 Gun 102 | . 51 51 Cannon . | . . . Launcher 24 | . 12 12 Special . | . . . Kinetic 17 | . 17 . Thermal 10 | . . 10 Explosive 24 | . 12 12 Electromagnetic 75 | . 34 41 Robot Hit Streak 9 | . 6 9 Robot Miss Streak 3 | . 3 2 Penetration Max . | . . . Secondary Targets 1 | . 1 . Max Gunslinging Chain 1 | . 1 . Shots Hit Robots 66 | . 28 38 Core Hits 50 | . 24 26 Critical Kills . | . . . Critical Parts Destroyed . | . . . Critical Strikes . | . . . Melee Attacks . | . . . Impact . | . . . Slashing . | . . . Piercing . | . . . Sneak Attacks . | . . . Combat Hostiles . | . . . Follow-up Attacks . | . . . Damage Inflicted 1715 | . 673 1042 Guns 787 | . 418 369 Cannons . | . . . Explosions 928 | . 255 673 Melee . | . . . Ramming . | . . . Kinetic 168 | . 168 . Thermal 209 | . 119 90 Explosive 781 | . 136 645 Electromagnetic 557 | . 250 307 Impact . | . . . Slashing . | . . . Piercing . | . . . Highest Corruption 4 | . . 4 Average Corruption 1 | . . 1 Corruption Purged . | . . . Corruption Blocked . | . . . Effects 3 | . . 3 Matter Fused 1 | . . 1 Energy Discharges 1 | . . 1 Alerts 1 | . . 1 Overload Shots . | . . . Overflow Damage 24 | . 8 16 Projectiles . | . . . Explosions 24 | . 8 16 Melee . | . . . Knockbacks . | . . . Impact . | . . . Kinetic . | . . . Secondary . | . . . Self-Inflicted Damage 35 | . 26 9 Shots 3 | . 2 1 Rammed . | . . . Targets Rammed . | . . . Kicked . | . . . Crushed . | . . . Highest Temperature 146 | . 146 39 Average Temperature 37 | . 39 22 Received Heat Transfer 390 | . 108 282 Siege Activations . | . . . Robots Corrupted . | . . . Combat Hostiles . | . . . Parts Fried . | . . . Impact Corruptions . | . . . Robots Melted . | . . . Combat Hostiles . | . . . Parts Melted 1 | . . 1 Heat Transferred 225 | . 100 125 Parts Sabotaged . | . . . Parts Stolen . | . . . Parts Stripped . | . . . Power Chain Reactions 3 | . 2 1 Alert | -11 -10 -10 ------- Run | Yrd Mat Sub Peak Influence 655 | . 655 . Initial . | . . . Average 385 | . 385 . Maximum Alert Level 2 | . 2 . Low Security (%) 11 | . 11 . Level 1 39 | . 39 . Level 2 48 | . 48 . Level 3 . | . . . Level 4 . | . . . Level 5 . | . . . High Security . | . . . Max Security . | . . . Squads Dispatched 3 | . 3 . Investigation 2 | . 2 . Extermination . | . . . Reinforcement 1 | . 1 . Assault . | . . . Garrison . | . . . Intercept . | . . . Searches Triggered . | . . . Construction Impeded . | . . . Haulers Reinforced . | . . . Active Scanning Responses . | . . . Cargo Convoy Interrupts . | . . . Stealth | -11 -10 -10 --------- Run | Yrd Mat Sub Distress Signals . | . . . Communications Jammed . | . . . Distress Signals . | . . . Times Spotted 46 | . 19 27 Peak Tracking Total 6 | . 6 6 Tactical Retreats 2 | . . 2 Traps | -11 -10 -10 ------- Run | Yrd Mat Sub Traps Triggered 1 | . 1 . Indirectly . | . . . Trap Hack Attempts . | . . . Triggered . | . . . Disarmed . | . . . Reprogrammed . | . . . Reused . | . . . Traps Extracted . | . . . Installed . | . . . Triggered . | . . . Machines | -11 -10 -10 ---------- Run | Yrd Mat Sub Machines Disabled 6 | . 3 3 Max in Single Turn 2 | . 2 . Machines Repaired . | . . . Machines Dismantled . | . . . Machines Sabotaged . | . . . Overloaded Fab Kills . | . . . Hacking | -11 -10 -10 --------- Run | Yrd Mat Sub Machines Accessed 10 | . 10 . Terminals 8 | . 8 . Fabricators . | . . . Repair Stations 1 | . 1 . Recycling Units 1 | . 1 . Scanalyzers . | . . . Garrison Access . | . . . Total Hacks 36 | . 36 . Successful 24 | . 24 . Failed 12 | . 12 . Catastrophic 3 | . 3 . Database Lockouts . | . . . Manual 26 | . 26 . Terminals 29 | . 29 . Fabricators . | . . . Repair Stations 4 | . 4 . Recycling Units 3 | . 3 . Scanalyzers . | . . . Garrison Access . | . . . Terminal Hacks 9 | . 9 . Robot Analysis 2 | . 2 . Prototype ID Bank 1 | . 1 . Terminal Index 1 | . 1 . Alert Level 3 | . 3 . Locate Traps 1 | . 1 . Zone Layout 1 | . 1 . Fabricator Hacks . | . . . Repair Station Hacks 4 | . 4 . Scan Component 2 | . 2 . Repair 2 | . 2 . Recycling Unit Hacks 1 | . 1 . Report Inventory 1 | . 1 . Scanalyzer . | . . . Garrison Access Hacks . | . . . Unauthorized Hacks 10 | . 10 . Terminals 10 | . 10 . Botnet 1 | . 1 . Operators 1 | . 1 . Skim 8 | . 8 . Fabricators . | . . . Repair Stations . | . . . Recycling Units . | . . . Scanalyzers . | . . . Garrison Access . | . . . Data Cores Recovered 1 | . 1 . Used 1 | . 1 . Hacking Detections 9 | . 9 . Full Trace Events 3 | . 3 . Feedback Events . | . . . Feedback Blocked . | . . . Robot Schematics Acquired . | . . . Robots Built . | . . . Authchips . | . . . Time . | . . . Total Robot Build Rating . | . . . Part Schematics Acquired . | . . . Parts Built . | . . . Authchips . | . . . Time . | . . . Total Part Build Rating . | . . . Parts Repaired 2 | . 2 . Time 52 | . 52 . Parts Recycled . | . . . Recycled Matter . | . . . Retrieved Matter . | . . . Retrieved Components . | . . . Parts Scanalyzed . | . . . Part Schematics Acquired . | . . . Parts Damaged . | . . . Bothacking | -11 -10 -10 ------------ Run | Yrd Mat Sub Used RIF Installer . | . . . Robots Hacked . | . . . Non-combat . | . . . Combat . | . . . Robot Hacks Applied . | . . . Relay Couplers Released . | . . . Fabnet Peak Effective % . | . . . Robots Rewired . | . . . Allies Hacked . | . . . Hacks Repelled . | . . . Allies | -11 -10 -10 -------- Run | Yrd Mat Sub Total Allies 1 | . 1 . Largest Group 1 | . 1 1 Highest-Rated Group 62 | . 59 62 Highest-Rated Ally 62 | . 59 62 Total Orders . | . . . Ally Attacks 40 | . 14 26 Total Damage 659 | . 158 501 Kills 8 | . 5 3 Allies Corrupted . | . . . Allies Melted . | . . . Intel | -11 -10 -10 ------- Run | Yrd Mat Sub Robot Analysis Total 2 | . 2 . Derelict Logs Recovered 1 | . . 1 Drone Launches . | . . . Drone Recoveries . | . . . Exploration | -11 -10 -10 ------------- Run | Yrd Mat Sub Turns Passed 1857 | . 1081 776 Spaces Moved 1031 | 1 573 457 Core . | . . . Treads . | . . . Legs 14 | 1 13 . Wheels 1017 | . 560 457 Hover . | . . . Flight . | . . . Fastest Speed 80 | 120 80 140 Average Speed 131 | 120 123 140 Slowest Speed 200 | 120 200 140 Overloaded Moves . | . . . Propulsion Burnouts . | . . . Robots Hopped . | . . . Cave-ins Triggered . | . . . Exploration Rate (%) 41 | 3 79 43 Regions Visited 2 Branch Regions 1 Pre-discovered Areas 1 | . 1 . Known Exits Taken 1 | . 1 . Unknown Exits Taken 1 | 1 . . Scrap Searched . | . . . Spaces Dug 11 | . 11 . Terrain Destroyed 135 | . 95 40 Melee . | . . . Projectile . | . . . AOE 135 | . 95 40 Terrain Rammed . | . . . Walls Destroyed . | . . . Machines Disabled . | . . . Actions | -11 -10 -10 --------- Run | Yrd Mat Sub Total 1399 | . 876 523 Wait 225 | . 225 . Move 1029 | . 572 457 Hop . | . . . Pick Up 20 | . 12 8 Fast Attach 3 | . 3 . Attach 11 | . 5 6 Detach . | . . . Swap 31 | . 15 16 Drop 8 | . 8 . Fire 72 | . 36 36 Melee . | . . . Ram . | . . . Kick . | . . . Crush . | . . . Escape Stasis . | . . . Rewire . | . . . Trap . | . . . Miscellaneous . | . . . Route ------- -11/Scrapyard -10/Materials (discovered 6 exits: *Mat x3 / *Min x2 / *Sub) -10/Subcaves (discovered 2 exits: Mat / Rec) History --------- Turn | Location | Event 1 | -11/Scrapyard | Discovered new exit (range 0) 1 | -11/Scrapyard | Entered Materials 224 | -10/Materials | Discovered new exit (range 16) 307 | -10/Materials | Build established: Mutant 340 | -10/Materials | Discovered new exit (range 12) 477 | -10/Materials | Repaired Structural Scanner 504 | -10/Materials | Repaired Ion Engine 606 | -10/Materials | Discovered new exit (range 16) 702 | -10/Materials | Discovered new exit (range 8) 738 | -10/Materials | Learned Storage stockpile data 796 | -10/Materials | Learned location of 2 exits from Subcaves 846 | -10/Materials | Learned 4 Recycling zone layouts 884 | -10/Materials | Learned Storage garrison access intel 910 | -10/Materials | Identified exit to Mines 910 | -10/Materials | Identified exit to Materials 927 | -10/Materials | Identified exit to Subcaves 956 | -10/Materials | Learned Storage garrison access intel 993 | -10/Materials | Learned location of Recycling (-7) 1039 | -10/Materials | Learned Storage trap positions 1082 | -10/Materials | Entered Subcaves 1082 | -10/Subcaves | Learned Materials security intel 1083 | -10/Subcaves | Identified exit to Recycling 1083 | -10/Subcaves | Identified exit to Materials 1192 | -10/Subcaves | Ambushed by angry Subdweller bent on revenge 1284 | -10/Subcaves | Ambushed by Subdwellers from Twisted Machinery 1492 | -10/Subcaves | A swath of the cavern ceiling suddenly collapsed 1721 | -10/Subcaves | Core integrity fell below 50% 1853 | -10/Subcaves | Core integrity fell below 20% 1858 | -10/Subcaves | Destroyed by Autobeam Turret with Autobeam Last Messages --------------- 01794_ Acquired 7 matter. 01799_ The unstable cave ceiling collapses. 01821_ Acquired 10 matter. 01826_ System corrupted: Matter fused (-5). 01831_ Integrated Corrupted Sub. Power Source (+3). 01837_ S-10 Pest destroyed. 01838_ Destroyed Flight Unit. 01840_ S-10 Pest destroyed. 01842_ Lgt. Ion Engine fries itself beyond repair. 01842_ EM Pulse Gun destroyed. 01844_ Lgt. Assault Rifle fries itself beyond repair. 01844_ EM Pulse Gun destroyed. 01848_ Wheel destroyed. 01849_ Lgt. Ion Engine fries itself beyond repair. 01853_ Lgt. Assault Rifle fries itself beyond repair. 01853_ Destroyed Autobeam. 01853_ Autobeam Turret suffers critical hit (Destroy). 01853_ Autobeam Turret destroyed. 01856_ Machine disabled. 01856_ EM Pulse Gun destroyed. Map ----- +----------------------------------------------------+ | #??########?#### ## #### | | ##?????????????### ## ###### | | [#??????????????## ########## ## | | ##?????????????## ## ######### ### | | #?????????????## #### #######???### ## | | ##?????????????#####################???## ### | | ##?????????????##########?#####????????## #### | | ""#?????????????????????????????????????### ## # | | ""#?????????????????????????????????????### | | "##?????????????????????????????????????## | | ##??????????????????????????????????????### | | ????????????????????????????????????????### | | ?????????????????????????????????????????### | | ?????????????????????????????????????????###### | | ??????????????????????????????????????????###### | | ?????????????????????????????????????????????##### | | ????????????? ???????????????????????????????#### | | ???????????? #???????????????????????????????## | | ????????????t ?????????????????????????????## | | ?????????>?? ???????????????????????????## = | | ???????????? ???????????####??????????## | | ??????????? % #####?????# ###???????## | | ??????????? ????##""""###????## | | ????????????" #???##"" ### ##??## | | ???????????????# ##??#% " #??# [ | | ????????????????# @#### "" ##?# [ | | ????????????????# @ ## "" # #?## ! | | ????????????????# ## ##""" #??## [ | | ????????????????# ??## ""### # & ##??##### | | ????????????????# ????##" "#?# & #?????## | | ???????????????# ???????# "##?# "##????## | | ???????????????## ????????# #??### #????## | | ????????????????#????????? ""#??# ##??## | | ?????????????????????????""" ??### #### # | | ?????????????????????????# #?# ### ## # | | ?????????????????????????####%#?# ### | | ?????????????????????????????##?### ## | | ??????????????????????????????????##### # | | ??????????????????????????????????????# ## | | ??????????????????????????????????????# ##? | | ?????????????????????????????????????# ##?? | | ????????????????????????????????????# ## #??? | | ????????????????????????????????????# ### #?? | | ????????????????????????????????????## ??# ###?? | | ?????????????????????????????????????##?? ##???? | | ????????????????????????????????????????? #????? | | ???????????????????????????????????????? ????? | | ????????????????????????????????????????## ????? | | ?????????????????????????????????????????## ???? | | ??????????????????????????????????????????####???? | +----------------------------------------------------+ Best States ------------- Heat Dissipation 25 Energy Generation 15 Energy Capacity 250 Matter Stores 300 Matter Capacity 300 Sight Range 16 Terrain Scan Density 10 Evasion (%) 45 Targeting Accuracy 5 Offensive Hacking 10 Item Schematics ----------------- None Robot Schematics ------------------ None Fabricated ------------ Nothing Alien Tech Used ----------------- None Achievements -------------- None Challenges ------------ None Player 2 | -11 -10 -10 ---------- Run | Yrd Mat Sub Slots Evolved . | . . . Power . | . . . Propulsion . | . . . Utility . | . . . Weapon . | . . . Parts Attached 17 | . 14 3 Parts Lost . | . . . Damage Taken 155 | . 123 32 Core 13 | . 13 . Player 2/Cogmind (%) 5 | . 23 . Absorbed by Shields . | . . . Damage Inflicted 659 | . 158 501 Player 2/Cogmind (%) 27 | . 19 32 Combat Hostiles Destroyed 6 | . 4 2 Player 2/Cogmind (%) 20 | . 26 13 Game ------ Seed NullThrowingDoublenader Manual? 0 Play Time 00:13:49 Cumulative 929.8 hours Start 2024.09.11 @ 14:10:18 End 2024.09.11 @ 14:19:56 Sessions 1 Manual Loads 0 Difficulty Rogue Special Mode AFD2020/Player2 Game No. 1132 Rogue 852 Adventurer 124 Explorer 156 Win Type - Total 39 Types 28/0/8/1/1/0/0/1/0 Lore% 81 Gallery% 90 Achievement% 78 Wizard Run 0 Options --------- Layout 0 ASCII 0 Keyboard 1 Movement Numpad Keybinds 0 Fullscreen 2 Font 18/X11 Map View 76x50 Zoom Use 0% Tactical HUD 1 Map Filters NONE Filters NONE Steam 1 RUN: 6575f6d9-490d-4316-a3d2-d6c2c7775e40